bitfinex/quotes_ETHUSD_20240610
["timestamp","ask_amount","ask_price","bid_price","bid_amount"]
[1718050929582,1.742,3660.7,3659.9,5.18988]
[1718050929777,1.742,3660.7,3660.4,0.03963907]
[1718050929973,2.189362,3660.7,3659.9,5.18988]
[1718050930209,1.742,3660.7,3660.5,0.03963907]
[1718050930509,4.47376,3660.7,3659.9,5.18988]
[1718050930710,0.7288,3660.9,3660.6,0.03963907]
[1718050931012,0.7288,3660.9,3659.6,3.00661406]
[1718050931013,2.73199,3660.4,3659.6,2.7325]
[1718050931317,1.742,3660.2,3659.6,2.7325]
[1718050932544,2.73227,3660.0,3659.4,2.4576]
[1718050932695,2.73227,3660.0,3659.2,2.73276]
[1718050932893,1.742,3660.1,3659.4,2.73265]
[1718050933638,2.73205,3660.3,3659.7,2.4898]
[1718050934025,1.742,3660.4,3659.8,2.73238]
[1718050934211,1.742,3660.4,3659.8,3.254598]
[1718050934415,1.0,3661.0,3660.6,2.73178]
[1718050934630,2.73114,3661.5,3660.8,2.7316]
[1718050935907,2.73114,3661.5,3660.9,0.03896431]
[1718050936251,1.742,3661.4,3660.9,0.03896431]
[1718050936412,2.189314,3661.4,3660.9,0.03896431]
[1718050936613,2.189314,3661.4,3660.8,2.7316]
[1718050936813,2.73128,3661.3,3660.4,2.73187]
[1718050937027,2.73128,3661.3,3660.9,0.03863016]
[1718050937251,2.73128,3661.3,3660.6,2.73173]
[1718050937429,2.73128,3661.3,3661.0,0.03834023]
[1718050937750,2.73128,3661.3,3660.6,2.73173]
[1718050937937,2.73128,3661.3,3661.1,0.04685083]
[1718050938136,2.73128,3661.3,3661.1,0.0085106]
[1718050938338,1.12488921,3662.7,3661.1,0.0085106]
[1718050938541,1.742,3663.7,3663.0,2.73]
[1718050938910,1.742,3663.7,3662.6,2.73025]
[1718050938911,1.742,3663.3,3662.6,2.73025]
[1718050939516,1.742,3663.3,3662.7,0.03808817]
[1718050941515,2.72958,3663.6,3662.8,2.73015]
[1718050941893,0.547158,3663.5,3662.9,0.03685968]
[1718050945118,0.547158,3663.5,3663.0,0.0085106]
[1718050945519,0.547158,3663.5,3663.1,0.03678413]
[1718050946117,0.547158,3663.5,3662.8,2.73015]
[1718050946367,0.547158,3663.5,3663.2,0.03486459]
[1718050946518,0.547158,3663.5,3662.8,2.73015]
[1718050946857,0.547158,3663.5,3663.4,2.7297]
[1718050947087,1.0,3664.6,3662.9,2.75807889]
[1718050947252,1.0,3664.6,3662.9,2.723315]
[1718050947451,1.0,3664.6,3663.0,0.03476389]
[1718050947796,3.72883,3664.6,3663.6,2.72954]
[1718050947951,0.56442009,3664.4,3663.6,2.72954]
[1718050948151,2.72903,3664.3,3663.2,2.72978]
[1718050948347,1.0,3664.2,3663.2,2.72978]
[1718050948791,1.0,3664.2,3663.3,0.03476389]
[1718050949152,1.0,3664.2,3663.4,0.0085106]
[1718050949418,0.60354501,3664.1,3663.4,0.0085106]
[1718050949565,0.60354501,3664.1,3663.5,0.03476389]
[1718050949978,0.60354501,3664.1,3663.2,2.72978]
[1718050950276,0.60354501,3664.1,3663.4,2.72969]
[1718050950786,0.60354501,3664.1,3663.5,0.0085106]
[1718050950983,0.5074575,3664.0,3663.5,0.0085106]
[1718050951187,0.5074575,3664.0,3663.6,0.03457511]
[1718050951687,0.5074575,3664.0,3663.4,2.72969]
[1718050951887,0.5074575,3664.0,3663.7,0.03457511]
[1718050952052,0.5074575,3664.0,3663.4,2.72969]
[1718050952248,0.006,3664.4,3663.8,0.03457511]
[1718050952457,0.006,3664.4,3663.7,2.72943]
[1718050952758,0.006,3664.4,3663.9,0.0345059]
[1718050952972,0.006,3664.4,3663.7,2.72943]
[1718050953285,0.006,3664.4,3663.8,0.03449332]
[1718050953479,0.006,3664.4,3663.7,2.72943]
[1718050953655,0.29023109,3664.4,3663.7,2.72943]
[1718050953862,2.72904,3664.3,3663.8,0.03449332]
[1718050954180,3.72928,3664.0,3663.1,2.72992]
[1718050954397,1.0,3664.0,3663.1,2.72992]
[1718050954567,2.72945,3663.8,3663.1,2.72992]
[1718050954897,2.72945,3663.8,3663.0,6.96542022]
[1718050954898,2.72945,3663.8,3663.2,0.03444298]
[1718050955057,2.72945,3663.8,3663.0,6.96542022]
[1718050955256,2.7296,3663.6,3663.3,0.03444298]
[1718050955454,2.72975,3663.4,3662.5,2.73034]
[1718050957666,2.72989,3663.2,3662.5,2.73034]
[1718050957992,2.72989,3663.2,3662.4,2.2898]
[1718050958372,1.0,3663.5,3662.2,9.69599022]
[1718050958373,2.73005,3663.0,3662.2,9.69599022]
[1718050958677,2.73005,3663.0,3662.2,2.73057]
[1718050960890,2.73019,3662.8,3661.9,5.21678]
[1718050964825,2.73033,3662.6,3661.9,2.73078]
[1718050965678,2.73048,3662.4,3661.8,0.03483855]
[1718050965875,2.73048,3662.4,3662.0,0.03500788]
[1718050966078,2.73048,3662.4,3661.8,0.03483855]
[1718050966315,2.73048,3662.4,3662.1,0.03500788]
[1718050966501,3.003528,3662.4,3661.8,0.03483855]
[1718050966705,3.003528,3662.4,3662.2,0.03500788]
[1718050966926,3.003528,3662.4,3661.8,0.03483855]
[1718050967409,2.73062,3662.2,3661.9,0.03500788]
[1718050968581,3.2051868,3662.2,3661.9,0.03500788]
[1718050972821,2.73081,3662.0,3661.8,0.03483855]
[1718050973183,2.73081,3662.0,3661.9,0.03587035]
[1718050973386,2.73081,3662.0,3661.8,0.03483855]
[1718050973597,2.73081,3662.0,3661.9,0.03587035]
[1718050973799,2.73081,3662.0,3661.8,0.03483855]
[1718050974003,2.73081,3662.0,3661.9,0.03586405]
[1718050974210,2.73081,3662.0,3661.8,0.03483855]
[1718050974418,2.73081,3662.0,3661.9,0.03586405]
[1718050974631,2.73081,3662.0,3661.8,0.03483855]
[1718050975094,2.73081,3662.0,3661.9,0.03586405]
[1718050975292,2.72980519,3662.0,3661.9,0.03586405]
[1718050975606,2.72980519,3662.0,3661.8,0.03483855]
[1718050975823,2.72980519,3662.0,3661.9,0.03586405]
[1718050976290,2.72980519,3662.0,3661.8,0.03483855]
[1718050976490,2.72980519,3662.0,3661.9,0.03586405]
[1718050983409,2.73058,3662.3,3661.9,2.38026405]
[1718050983754,2.73013,3662.9,3662.2,2.73058]
[1718050983940,2.73013,3662.9,3662.4,2.73043]
[1718050984611,2.73013,3662.9,3662.5,0.03597739]
[1718050985224,1.742,3662.9,3662.5,0.03597739]
[1718050985445,2.73039,3662.5,3661.9,2.3444]
[1718050985612,4.47239,3662.5,3661.9,2.3444]
[1718050985809,4.47239,3662.5,3661.8,2.76569855]
[1718050986008,2.73054,3662.3,3661.8,0.03483855]
[1718050986440,1.742,3662.5,3661.8,0.03483855]
[1718050987846,2.73045,3662.4,3661.8,0.03483855]
[1718050988625,4.47267,3662.1,3661.8,0.03483855]
[1718050990119,2.73096,3661.8,3661.1,5.328]
[1718050990647,2.73125,3661.4,3660.7,5.201]
[1718050992032,2.73125,3661.4,3660.8,3.0]
[1718050992255,2.73125,3661.4,3660.9,0.8201]
[1718050992457,2.73125,3661.4,3660.8,3.0]
[1718050992815,2.73125,3661.4,3660.7,5.201]
[1718050993021,2.73138,3661.2,3660.7,2.4693]
[1718050994767,2.73156,3661.0,3660.3,2.292]
[1718050995123,2.73156,3661.0,3660.3,5.02398]
[1718050995460,2.73156,3661.0,3660.4,3.802398]
[1718050995876,2.73156,3661.0,3660.5,0.0345426]
[1718050998782,4.47379,3660.6,3660.5,0.0345426]
[1718050999132,4.47379,3660.6,3659.8,0.03485759]
[1718050999133,2.73205,3660.3,3659.8,0.03485759]
[1718050999450,2.73205,3660.3,3659.9,0.03441513]
[1718051002338,2.73181,3660.6,3659.9,0.03441513]
[1718051002544,2.73181,3660.6,3660.0,0.28016227]
[1718051003075,2.73181,3660.6,3660.1,0.03441513]
[1718051003790,1.0,3661.3,3660.1,0.03441513]
[1718051003942,2.73135,3661.2,3660.4,2.7319]
[1718051004296,2.73135,3661.2,3660.5,0.03474889]
[1718051004459,2.73135,3661.2,3660.6,3.00844489]
[1718051004852,2.73135,3661.2,3660.7,0.03474889]
[1718051006655,2.73116,3661.5,3660.7,0.03474889]
[1718051006985,2.73116,3661.5,3660.8,2.2741]
[1718051007481,2.73116,3661.5,3660.9,0.03474889]
[1718051007690,4.47331,3661.3,3660.9,0.03474889]
[1718051007850,4.47331,3661.3,3660.6,3.00844489]
[1718051008045,4.47331,3661.3,3661.0,0.03474889]
[1718051008245,2.73153,3661.0,3660.3,2.2741]
[1718051008546,1.742,3661.3,3660.3,5.2741]
[1718051008547,2.73167,3660.8,3660.3,5.2741]
[1718051008873,2.73167,3660.8,3659.9,2.73226]
[1718051010046,1.0,3660.8,3659.8,2.30895759]
[1718051010757,2.73198,3660.4,3659.8,3.11310435]
[1718051010963,2.73198,3660.4,3659.9,0.03484966]
[1718051012056,2.73224,3660.0,3659.9,0.03484966]
[1718051012611,2.73224,3660.0,3659.2,5.16551]
[1718051012899,2.73224,3660.0,3659.3,0.03484966]
[1718051014083,1.0,3660.4,3659.4,0.52003597]
[1718051014259,2.73204,3660.3,3659.2,2.4327]
[1718051014460,2.73204,3660.3,3659.5,0.03484966]
[1718051014660,2.73204,3660.3,3659.2,2.4327]
[1718051014873,2.73204,3660.3,3659.6,0.03484966]
[1718051015172,2.73204,3660.3,3659.2,2.4327]
[1718051015367,2.73181,3660.6,3659.7,0.03484966]
[1718051015688,2.73181,3660.6,3659.8,0.03484966]
[1718051015998,2.73181,3660.6,3659.7,2.3195]
[1718051016172,2.73181,3660.6,3659.9,0.03484966]
[1718051016356,2.73181,3660.6,3659.7,2.3195]
[1718051016666,2.73181,3660.6,3659.8,0.505197]
[1718051016866,2.73181,3660.6,3659.8,0.54004666]
[1718051017590,2.73198,3660.4,3659.8,0.03484966]
[1718051021871,2.73215,3660.2,3659.8,0.03484966]
[1718051022076,2.73215,3660.2,3659.7,2.3195]
[1718051022296,2.73215,3660.2,3659.9,0.03484966]
[1718051022529,2.73215,3660.2,3659.4,0.0348614]
[1718051022839,2.73227,3660.0,3659.4,3.0348614]
[1718051024890,1.0,3660.4,3659.4,3.0348614]
[1718051025091,1.742,3660.2,3659.4,0.0348614]
[1718051026002,1.742,3660.2,3659.5,0.03525913]
[1718051027198,1.742,3660.2,3659.5,2.76783913]
[1718051027397,2.314111,3660.2,3659.5,2.76783913]
[1718051028956,2.314111,3660.2,3659.5,0.03525913]
[1718051029438,1.742,3660.2,3659.5,0.03525913]
[1718051031232,2.73223,3660.1,3659.5,0.03525913]
[1718051032735,2.73248,3659.7,3659.5,0.03525913]
[1718051055392,2.73285,3659.2,3658.9,2.3885]
[1718051055743,2.73285,3659.2,3659.0,0.03677118]
[1718051059087,2.73301,3659.0,3658.6,2.4437]
[1718051059861,2.73283,3659.3,3658.6,3.261414]
[1718051060964,0.726,3658.9,3658.6,3.261414]
[1718051063393,2.73259,3659.6,3658.9,2.73304]
[1718051063587,0.726,3659.0,3658.9,2.73304]
[1718051063798,2.73271,3659.4,3658.9,2.73304]
[1718051064000,2.73271,3659.4,3658.6,5.994624]
[1718051064001,0.726,3659.0,3658.6,5.994624]
[1718051064171,2.73271,3659.4,3658.6,5.994624]
[1718051064172,0.726,3658.8,3658.6,5.994624]
[1718051068229,0.726,3658.8,3658.6,5.17691]
[1718051069896,0.726,3658.8,3658.6,2.4437]
[1718051070920,0.726,3658.8,3658.7,0.03701702]
[1718051077430,3.45913,3658.8,3658.7,0.03701702]
[1718051077626,3.45913,3658.8,3658.1,5.7385687]
[1718051077956,2.73331,3658.6,3658.2,3.0]
[1718051078263,0.726,3658.3,3658.2,0.03705485]
[1718051081358,0.726,3658.3,3657.8,5.06371]
[1718051081687,0.726,3658.1,3657.8,5.06371]
[1718051081847,0.726,3658.1,3657.8,5.93138663]
[1718051084068,0.726,3658.2,3657.8,5.93138663]
[1718051084576,2.73347,3658.4,3657.8,5.93138663]
[1718051084785,0.726,3658.2,3657.8,5.93138663]
[1718051085376,2.73347,3658.4,3657.8,5.93138663]
[1718051085584,0.726,3658.3,3657.8,5.93138663]
[1718051085781,0.726,3658.3,3657.9,0.03705485]
[1718051089978,0.726,3658.1,3657.9,0.03705485]
[1718051090504,0.726,3658.2,3657.9,0.03705485]
[1718051093623,2.73347,3658.4,3657.9,0.03705485]
[1718051093767,0.726,3658.3,3657.9,0.03705485]
[1718051115297,1.0,3659.0,3657.9,0.03705485]
[1718051115298,0.726,3659.0,3658.6,2.2977]
[1718051115502,7.44,3659.4,3658.7,2.7332]
[1718051115705,7.44,3659.4,3659.0,2.2977]
[1718051115908,12.46,3659.9,3659.0,2.2977]
[1718051115909,2.73236,3659.9,3659.1,2.73289]
[1718051116248,2.73236,3659.9,3659.1,3.27358384]
[1718051116517,0.726,3659.7,3659.1,3.27358384]
[1718051117203,0.726,3659.7,3659.1,2.77052484]
[1718051117699,2.73236,3659.9,3659.1,2.77052484]
[1718051117700,0.726,3659.5,3659.1,2.77052484]
[1718051119265,0.726,3659.2,3659.1,0.03763484]
[1718051119466,0.726,3659.2,3658.8,2.73308]
[1718051119662,0.726,3658.9,3658.5,2.73334]
[1718051119870,2.7328,3659.3,3658.5,2.73334]
[1718051119871,0.726,3658.7,3658.5,2.73334]
[1718051120081,0.726,3658.7,3658.2,5.73353]
[1718051120299,1.0,3659.1,3658.2,5.73353]
[1718051120300,0.726,3658.4,3658.2,5.73353]
[1718051120471,0.726,3658.6,3658.2,5.73353]
[1718051120667,2.7331,3658.9,3658.2,6.39541898]
[1718051120865,0.726,3658.9,3658.4,2.7334]
[1718051121102,0.726,3659.0,3658.6,2.73327]
[1718051122776,3.73264,3659.5,3658.8,2.73311]
[1718051123178,0.726,3659.4,3658.8,2.73311]
[1718051123800,3.73264,3659.5,3658.8,2.73311]
[1718051123801,2.73264,3659.5,3658.8,3.19151183]
[1718051123988,0.726,3659.5,3658.8,3.19151183]
[1718051125197,0.726,3659.5,3659.0,2.73295]
[1718051126102,0.726,3659.6,3659.0,2.73295]
[1718051126510,3.46136,3659.6,3658.7,2.7332]
[1718051126678,0.726,3658.9,3658.7,2.7332]
[1718051126879,0.346136,3659.5,3658.7,2.7332]
[1718051126880,0.726,3659.1,3658.7,2.7332]
[1718051128163,0.726,3659.3,3658.7,2.7332]
[1718051130506,0.726,3659.3,3658.9,2.73303]
[1718051130807,0.726,3659.2,3659.0,0.03683424]
[1718051133834,2.73256,3659.6,3659.1,2.3388]
[1718051133976,0.726,3659.3,3659.1,2.3388]
[1718051134171,0.726,3659.3,3659.2,0.03683424]
[1718051142507,7.44,3660.1,3659.2,0.54770066]
[1718051142699,0.726,3660.0,3659.5,2.73259]
[1718051142924,7.44,3660.1,3659.5,2.73259]
[1718051143108,0.726,3660.0,3659.6,0.03667526]
[1718051143421,0.726,3660.0,3659.5,2.73259]
[1718051143580,0.726,3660.0,3659.7,0.03667526]
[1718051143781,0.726,3660.0,3659.5,2.73259]
[1718051144008,3.45825,3660.0,3659.8,0.03667526]
[1718051144213,1.071825,3659.9,3659.2,2.73276]
[1718051144416,0.726,3659.7,3659.2,2.73276]
[1718051145692,2.97894,3660.5,3658.9,3.0]
[1718051145693,0.726,3659.4,3658.9,5.73299]
[1718051145910,0.726,3659.2,3658.9,5.73299]
[1718051146509,0.726,3659.4,3658.9,5.73299]
[1718051148621,0.726,3659.4,3658.9,2.73299]
[1718051149824,0.726,3659.2,3658.8,2.3936]
[1718051150122,0.726,3659.0,3658.6,2.73323]
[1718051152745,2.73285,3659.2,3658.6,2.73323]
[1718051152889,0.726,3659.1,3658.6,3.548083]
[1718051153487,0.726,3659.0,3658.6,3.548083]
[1718051156576,3.45885,3659.2,3658.6,3.548083]
[1718051160939,3.45885,3659.2,3658.7,0.03663112]
[1718051161538,0.726,3659.0,3658.7,0.03663112]
[1718051162452,0.726,3659.0,3658.8,0.0085106]
[1718051162621,0.726,3659.0,3658.8,0.04513542]
[1718051162822,0.726,3659.2,3658.8,2.77825542]
[1718051163133,2.73268,3659.5,3658.8,3.29761096]
[1718051163353,11.58692383,3660.2,3658.9,2.4909]
[1718051163354,3.85708921,3660.1,3658.9,2.4909]
[1718051163511,3.85708921,3660.1,3659.1,0.5721787]
[1718051163512,2.7322,3660.1,3659.1,0.5721787]
[1718051163849,2.732,3660.4,3659.4,2.73266]
[1718051164167,0.726,3660.0,3659.4,2.73266]
[1718051164328,0.726,3660.0,3659.7,2.4369]
[1718051164511,2.732,3660.4,3659.7,2.4369]
[1718051164714,2.732,3660.4,3659.8,0.0450787]
[1718051164931,3.458,3660.4,3659.8,0.0450787]
[1718051165310,0.726,3660.2,3659.8,0.0450787]
[1718051166535,0.726,3660.0,3659.8,0.0450787]
[1718051166733,2.732,3660.4,3659.8,0.0450787]
[1718051166938,7.44,3661.1,3659.8,0.0450787]
[1718051166939,8.44,3661.1,3659.8,0.0450787]
[1718051167151,0.726,3660.6,3659.8,0.0085106]
[1718051167656,0.726,3660.6,3659.9,0.03620894]
[1718051167942,0.726,3660.6,3660.0,2.73218]
[1718051168514,0.726,3660.6,3660.1,0.03620894]
[1718051169920,0.726,3660.4,3660.1,0.03620894]
[1718051174668,2.73139,3661.2,3660.2,2.264]
[1718051174865,0.726,3661.4,3660.8,2.264]
[1718051175454,0.726,3661.4,3660.9,0.03533942]
[1718051175679,2.73094,3661.8,3660.9,2.76686942]
[1718051175961,0.726,3661.5,3660.9,2.76686942]
[1718051176946,0.726,3661.3,3660.9,2.76686942]
[1718051178340,1.071706,3661.3,3660.9,2.76686942]
[1718051178919,0.726,3661.1,3660.9,2.76686942]
[1718051183558,2.73106,3661.6,3660.9,2.76686942]
[1718051183756,0.726,3661.2,3660.9,2.76686942]
[1718051183971,0.726,3661.2,3660.9,2.73153]
[1718051184169,2.73106,3661.6,3661.0,0.0348482]
[1718051184331,0.726,3661.3,3661.0,0.0348482]
[1718051184944,0.273106,3661.5,3661.0,0.0348482]
[1718051185131,0.726,3661.3,3661.0,0.0348482]
[1718051185360,0.726,3661.3,3660.8,2.264]
[1718051185836,0.726,3661.3,3660.9,0.0343003]
[1718051187173,2.73121,3661.4,3660.9,0.0343003]
[1718051189082,3.73073,3662.1,3660.9,0.0343003]
[1718051189083,2.73135,3661.2,3660.9,0.0343003]
[1718051189948,0.726,3661.4,3660.9,0.0343003]
[1718051190362,2.73098,3661.7,3660.9,0.53730633]
[1718051190665,3.45698,3661.7,3660.9,0.0343003]
[1718051191174,0.726,3661.7,3660.9,0.0343003]
[1718051192281,0.726,3661.7,3661.0,2.73144]
[1718051192488,0.726,3661.7,3661.0,2.76574659]
[1718051192671,0.726,3661.5,3661.0,2.76574659]
[1718051193084,1.0,3662.1,3661.0,2.76574659]
[1718051193085,0.726,3661.3,3661.0,0.03430659]
[1718051193287,0.726,3661.3,3660.8,2.264]
[1718051193488,0.726,3661.3,3661.1,0.03416178]
[1718051193651,0.726,3661.3,3660.8,2.264]
[1718051193851,0.726,3661.3,3661.2,0.03416178]
[1718051194067,0.726,3661.3,3660.8,2.264]
[1718051194269,0.726,3661.3,3661.2,0.03416178]
[1718051194467,0.726,3661.3,3660.8,2.264]
[1718051194791,0.726,3661.3,3661.2,0.03416178]
[1718051195163,0.726,3661.3,3660.8,2.264]
[1718051195705,0.726,3661.3,3660.9,0.03416178]
[1718051196356,0.726,3661.1,3660.9,0.03416178]
[1718051196865,0.726,3661.1,3660.7,2.73165]
[1718051197074,0.726,3661.1,3661.0,0.034294]
[1718051197403,0.726,3661.1,3660.7,2.73165]
[1718051197708,0.726,3661.3,3660.7,2.73165]
[1718051197854,3.45728,3661.3,3660.8,0.034294]
[1718051198570,0.726,3661.1,3660.8,0.034294]
[1718051203789,0.726,3660.9,3660.8,0.034294]
[1718051204091,2.73128,3661.3,3660.8,0.034294]
[1718051204292,0.726,3661.0,3660.8,0.034294]
[1718051206159,3.4575,3661.0,3660.2,2.73202]
[1718051206396,0.726,3660.7,3660.3,3.0]
[1718051209389,0.726,3660.7,3660.2,2.73202]
[1718051209598,0.726,3660.5,3660.2,2.73202]
[1718051210884,0.726,3660.5,3660.1,2.3175]
[1718051215772,2.73152,3661.0,3660.3,2.732]
[1718051215978,0.726,3661.2,3660.4,2.3487]
[1718051216179,2.73131,3661.3,3660.4,2.3487]
[1718051216486,0.726,3661.0,3660.4,2.3487]
[1718051216692,0.726,3661.0,3660.4,2.9798674]
[1718051217789,2.73131,3661.3,3660.4,2.9798674]
[1718051217999,0.726,3661.0,3660.4,2.9798674]
[1718051218303,2.73131,3661.3,3660.4,2.9798674]
[1718051218518,0.726,3661.0,3660.4,2.9798674]
[1718051218705,0.726,3661.0,3660.5,0.54294577]
[1718051220503,0.726,3661.0,3660.4,2.3487]
[1718051220835,0.726,3660.6,3660.4,2.3487]
[1718051221122,0.726,3660.6,3660.5,0.0342825]
[1718051225402,2.73159,3660.9,3660.5,0.0342825]
[1718051225903,3.45759,3660.9,3660.5,0.0342825]
[1718051227301,2.73159,3660.9,3660.5,0.0342825]
[1718051227491,3.45759,3660.9,3660.5,0.0342825]
[1718051231456,7.44,3661.7,3660.5,0.34737457]
[1718051231615,7.44,3661.7,3660.6,2.4193]
[1718051231616,0.726,3661.3,3660.6,2.4193]
[1718051231950,0.726,3661.3,3660.7,0.03441239]
[1718051232118,0.726,3661.3,3660.8,0.27668045]
[1718051232515,2.12488921,3662.0,3661.0,2.3678]
[1718051232516,0.726,3661.6,3661.0,2.3678]
[1718051233037,2.73096,3661.8,3661.1,2.76577203]
[1718051233357,2.73069,3662.1,3661.4,2.3678]
[1718051233540,0.726,3662.0,3661.4,2.3678]
[1718051233713,0.726,3662.0,3661.5,0.03433684]
[1718051233917,0.726,3662.0,3661.4,2.3678]
[1718051234120,0.726,3662.0,3661.5,0.03433684]
[1718051234316,0.726,3662.0,3661.4,2.3678]
[1718051234515,0.726,3662.0,3661.5,2.76543684]
[1718051236053,2.73049,3662.4,3661.7,2.73095]
[1718051236360,0.726,3662.2,3661.7,2.73095]
[1718051236531,0.726,3662.2,3661.8,0.03383323]
[1718051236725,0.726,3662.2,3661.7,2.73095]
[1718051236959,0.726,3662.2,3661.8,0.03377659]
[1718051237116,0.726,3662.0,3661.7,2.73095]
[1718051237460,0.726,3662.0,3661.8,0.03377659]
[1718051237630,2.73049,3662.4,3661.9,2.3383]
[1718051237831,0.726,3662.2,3661.9,2.3383]
[1718051238065,0.726,3662.2,3662.0,0.03377659]
[1718051240367,1.12488921,3662.8,3662.1,2.73066]
[1718051240566,1.85088921,3662.8,3662.1,2.73066]
[1718051240738,1.85088921,3662.8,3662.2,0.03370737]
[1718051240941,1.12488921,3662.8,3662.3,2.73052]
[1718051241151,1.85088921,3662.8,3662.4,0.03364444]
[1718051241329,0.726,3662.5,3662.4,0.03364444]
[1718051241553,1.12488921,3662.8,3662.5,5.06866]
[1718051242178,1.12488921,3662.8,3662.6,0.03344938]
[1718051248375,1.12488921,3662.8,3662.2,2.4233]
[1718051248548,1.12488921,3662.8,3662.3,0.03160213]
[1718051248963,1.12488921,3662.8,3662.4,0.03160213]
[1718051249284,1.12488921,3662.8,3662.2,2.4233]
[1718051249587,1.12488921,3662.8,3661.8,2.73085]
[1718051249588,2.73024,3662.7,3661.9,2.4233]
[1718051249889,2.73024,3662.7,3662.0,0.54706116]
[1718051257459,3.73004,3663.0,3662.0,0.54706116]
[1718051257785,2.73004,3663.0,3662.0,3.27775116]
[1718051259799,2.72968,3663.5,3662.5,2.73037]
[1718051260092,2.72968,3663.5,3662.6,2.44530201]
[1718051262470,2.72945,3663.8,3662.8,2.73014]
[1718051262854,1.0,3664.1,3662.9,0.03102023]
[1718051262855,0.724,3663.3,3662.9,0.03102023]
[1718051263058,2.72959,3663.6,3662.8,2.73014]
[1718051263295,0.724,3663.2,3663.0,0.03102023]
[1718051263471,0.724,3663.2,3662.6,2.4142]
[1718051263671,0.724,3663.2,3663.1,0.03076866]
[1718051263871,0.724,3663.2,3662.7,0.5417587]
[1718051264071,0.724,3663.2,3663.1,0.03073093]
[1718051264279,0.724,3663.2,3662.7,0.5417587]
[1718051264487,0.724,3663.2,3663.1,0.03073093]
[1718051264670,0.724,3663.2,3662.7,0.5417587]
[1718051264870,0.724,3663.2,3663.1,0.03073093]
[1718051265103,0.724,3663.2,3662.8,0.59593457]
[1718051265264,2.72971,3663.4,3663.1,0.03073093]
[1718051265462,0.724,3663.2,3662.8,0.59593457]
[1718051265862,0.724,3663.2,3662.9,0.03073093]
[1718051266168,0.724,3663.2,3662.9,0.33481748]
[1718051268907,0.724,3663.4,3662.9,0.33481748]
[1718051271384,2.72964,3663.5,3662.9,0.33481748]
[1718051271585,3.45364,3663.5,3662.9,0.33481748]
[1718051275513,0.724,3663.3,3662.9,0.33481748]
[1718051277284,0.724,3663.3,3663.0,0.36609521]
[1718051277711,0.724,3663.3,3663.1,0.02925726]
[1718051278241,0.724,3663.3,3662.9,0.30408655]
[1718051278398,0.724,3663.3,3663.2,0.02925726]
[1718051278594,0.724,3663.3,3662.7,2.7302]
[1718051278793,0.724,3662.9,3662.8,0.02925726]
[1718051279131,0.724,3663.1,3662.8,0.02925726]
[1718051279503,2.72964,3663.5,3662.8,0.02925726]
[1718051279723,0.724,3663.2,3662.8,0.02925726]
[1718051280599,0.724,3663.4,3662.8,0.02925726]
[1718051280799,0.724,3663.4,3662.9,0.51736573]
[1718051280999,2.72964,3663.5,3663.0,0.02922583]
[1718051281232,0.724,3663.3,3663.0,0.02922583]
[1718051281943,0.724,3663.4,3663.1,2.399]
[1718051282345,0.724,3663.4,3663.2,0.02919441]
[1718051283056,2.72946,3663.8,3663.2,0.59675542]
[1718051283261,0.724,3663.6,3663.2,0.59675542]
[1718051288516,5.18405,3664.1,3663.2,3.32653542]
[1718051288971,0.724,3663.6,3663.2,3.32653542]
[1718051289539,2.72925,3664.1,3663.4,2.72969]
[1718051289850,0.724,3663.8,3663.5,0.36117255]
[1718051290171,0.724,3663.8,3663.6,2.4964]
[1718051290623,0.724,3663.8,3663.7,0.02852801]
[1718051295170,2.72925,3664.1,3663.5,0.33264454]
[1718051295326,0.724,3663.8,3663.7,0.02847146]
[1718051295658,0.724,3663.8,3663.5,0.33264454]
[1718051295864,0.724,3663.8,3663.7,0.02822639]
[1718051296065,0.724,3663.8,3663.6,0.53765345]
[1718051296363,0.724,3663.8,3663.7,0.02822639]
[1718051297777,2.72925,3664.1,3663.7,0.02822639]
[1718051297959,0.724,3663.8,3663.7,0.02822639]
[1718051298531,2.72925,3664.1,3663.8,2.3089]
[1718051298877,0.724,3663.9,3663.8,2.3089]
[1718051302632,0.724,3663.9,3663.4,2.4031]
[1718051302832,0.724,3663.8,3663.4,2.4031]
[1718051303032,0.724,3663.8,3663.5,0.24031]
[1718051303835,0.724,3663.8,3663.5,2.96993]
[1718051306377,0.724,3664.0,3663.5,2.96993]
[1718051308264,2.72918,3664.1,3663.5,2.96993]
[1718051308465,0.724,3663.9,3663.5,2.96993]
[1718051308662,2.72918,3664.1,3663.6,0.537303]
[1718051308884,1.12488921,3664.4,3663.6,0.537303]
[1718051308885,0.724,3664.2,3663.6,0.537303]
[1718051310849,0.724,3664.2,3663.7,0.02802532]
[1718051312193,4.52577717,3664.7,3663.9,2.353]
[1718051312194,3.85374921,3664.6,3663.9,2.353]
[1718051312392,0.724,3664.3,3663.9,2.353]
[1718051312769,0.724,3664.3,3664.0,0.02802532]
[1718051312951,2.72886,3664.6,3664.0,0.02802532]
[1718051313158,0.724,3664.4,3664.0,0.02802532]
[1718051314893,2.72886,3664.6,3664.0,0.02802532]
[1718051315190,0.724,3664.3,3664.0,0.02802532]
[1718051315395,0.724,3664.3,3664.0,0.59526378]
[1718051315557,0.1073709,3664.7,3664.0,3.37909414]
[1718051315763,0.1073709,3664.7,3664.2,2.7291]
[1718051315992,0.1073709,3664.7,3664.3,2.32364105]
[1718051316194,0.724,3664.6,3664.3,2.32364105]
[1718051316496,0.1073709,3664.7,3664.4,3.23421411]